[Event "Julius Baer Generation Cup Prelims 2022"]
[Site "Online"]
[Date "2022.09.14"]
[Round "14.1"]
[White "Giri, Anish"]
[Black "Praggnanandhaa R"]
[Result "1/2-1/2"]
[ECO "B30"]
[WhiteElo "2764"]
[BlackElo "2676"]
[Annotator "TA"]
[PlyCount "104"]
[EventDate "2022.09.12"]
[EventType "tourn"]
[EventCountry "NET"]
[SourceTitle "playchess.com"]
[Source "ChessBase"]
[SourceQuality "1"]
[TimeControl "900+10"]

{[%evp 16,104,23,18,8,26,11,24,12,8,13,15,16,18,22,0,0,9,15,0,0,0,0,0,7,-4,-4,-7,-21,-19,-15,-80,-78,-54,-14,-8,-11,-4,-10,-9,58,53,55,54,55,56,53,65,58,60,64,31,20,22,38,0,12,0,0,0,0,0,0,0,0,0,0,0,0,0,0,0,0,0,0,0,0,-3,0,0,0,0,0,0,0,0,0,0,0,0,0]} 1. e4 {[%emt 0:00:00] Szabo,Kr} c5 {[%emt 0:00:00]} 2. Nf3 {[%emt 0:00:02]} Nc6 {[%emt 0:00:01]} 3. Bb5 {[%emt 0:00:04]} e6 {[%emt 0:00:02]} 4. O-O {[%emt 0:00:03]} Nge7 {[%emt 0:00:01]} 5. Re1 {[%emt 0:00:01]} a6 {[%emt 0:00:00]} 6. Bf1 {[%emt 0:00:02]} d5 {[%emt 0:00:02]} 7. exd5 {[%emt 0:00:01]} Nxd5 {[%emt 0:00:00]} 8. d4 {[%emt 0:00:01]} Nf6 {[%emt 0:00:01]} 9. Be3 {[%emt 0:00:12]} cxd4 {[%emt 0:00:02] B30: Sicilian: 2...Nc6 3 Bb5, lines without ...g6.} 10. Nxd4 {[%emt 0:00:02]} Bd7 {[%emt 0:00:00]} 11. c4 {[%emt 0:00:25]} (11. Nd2 {feels hotter.} Qc7 12. Nc4 b5 13. Nb6) 11... Ne5 {[%emt 0:00:03] White has an edge.} 12. h3 {[%emt 0:00:34] Prevents Neg4.} Be7 {[%emt 0:00:03]} 13. Nc3 {[%emt 0:00:15]} O-O {[%emt 0:00:02]} 14. Qb3 {[%emt 0:00:36]} Qc7 {[%emt 0:00:04]} 15. Rac1 {[%emt 0:00:38]} Rac8 {[%emt 0:00:20]} 16. Na4 {[%emt 0:02:05]} Rcd8 {[%emt 0:00:03] 16...Ng6 is the modern continuation.} 17. Qb6 {[%emt 0:00:19] [#]} Qc8 $146 {[%emt 0:00:30]} ({Predecessor:} 17... Qxb6 18. Nxb6 Be8 19. a3 Ned7 20. Nb3 Nxb6 21. Bxb6 Rc8 22. Be3 Rb8 23. Bc5 Bxc5 24. Nxc5 {½-½ (40) Anand,V (2786)-Gelfand,B (2755) Moscow 2013 CBM 155 [Szabo,Kr]}) 18. Qa5 {[%emt 0:00:04]} Qb8 {[%emt 0:01:46]} 19. b4 {[%emt 0:03:33]} Be8 {[%emt 0:03:46][%cal Od8d4]} 20. b5 {[%emt 0:02:28]} axb5 {[%emt 0:00:42]} 21. Nxb5 {[%emt 0:00:10]} Nd3 {[%emt 0:03:02] [#] Strongly threatening ...Bb4.} 22. Bxd3 {[%emt 0:03:05]} Rxd3 {[%emt 0:00:00]} 23. Rcd1 {[%emt 0:00:07]} (23. Nb2 $11 {remains equal.} Rd7 24. Bd4) 23... Rxd1 $17 {[%emt 0:00:41]} 24. Rxd1 {[%emt 0:00:00]} Bc6 {[%emt 0:00:08]} 25. Na7 {[%emt 0:01:18]} Be4 {[%emt 0:00:12]} 26. Nc3 {[%emt 0:00:05]} Bg6 {[%emt 0:00:49]} 27. c5 {[%emt 0:01:49] [#] Black must now prevent c6.} Ne4 {[%emt 0:02:32]} (27... Qe5 $11) 28. c6 $1 $14 {[%emt 0:00:49]} bxc6 {[%emt 0:02:06]} ({Weaker is} 28... b6 29. Bxb6 Nxc3 30. c7 Ne2+ 31. Kh2 $16 (31. Kf1 Qa8 $14)) 29. Nxc6 {[%emt 0:00:04]} Qe8 {[%emt 0:00:02]} 30. Nxe7+ {[%emt 0:00:35]} Qxe7 {[%emt 0:00:01]} 31. Nxe4 {[%emt 0:00:10]} Bxe4 {[%emt 0:00:01]} 32. Qe5 {[%emt 0:00:11]} Ba8 {[%emt 0:01:20]} 33. Bc5 {[%emt 0:00:18]} Qb7 {[%emt 0:00:02][%csl Ga8][%cal Rb7g2]} 34. f3 {[%emt 0:00:19] Active counter play!} Re8 {[%emt 0:00:06]} 35. Qd6 {[%emt 0:00:11]} h6 {[%emt 0:00:14] The position is equal.} 36. Qb6 {[%emt 0:00:14]} (36. a4 {is more complex.} Qb3 37. a5 Rc8 38. Ra1) 36... Qxb6 {[%emt 0:00:52]} 37. Bxb6 $11 {[%emt 0:00:00][%mdl 4096] Endgame KRB-KRB} Bc6 {[%emt 0:00:01]} 38. Rd8 {[%emt 0:00:04]} Rxd8 {[%emt 0:00:01]} 39. Bxd8 {[%emt 0:00:00] KB-KB} e5 {[%emt 0:00:08]} 40. a3 {[%emt 0:00:01]} f6 {[%emt 0:00:03]} 41. h4 {[%emt 0:00:08]} Kf7 {[%emt 0:00:06]} 42. Kf2 {[%emt 0:00:01]} Ke6 {[%emt 0:00:02]} 43. g3 {[%emt 0:00:01]} h5 {[%emt 0:00:07]} 44. Ba5 {[%emt 0:00:02]} g6 {[%emt 0:00:02]} 45. Bb4 {[%emt 0:00:01]} f5 {[%emt 0:00:06]} 46. f4 {[%emt 0:00:01]} exf4 {[%emt 0:00:05]} 47. gxf4 {[%emt 0:00:00]} Kd5 {[%emt 0:00:01]} 48. Ke3 {[%emt 0:00:01]} Kc4 {[%emt 0:00:01]} 49. Be7 {[%emt 0:00:01]} Bb5 {[%emt 0:00:00]} 50. Bb4 {[%emt 0:00:00]} Bc6 {[%emt 0:00:01]} 51. Be7 {[%emt 0:00:00]} Bb5 {[%emt 0:00:01]} 52. Bb4 {[%emt 0:00:01]} Bc6 {[%emt 0:00:00] Weighted Error Value: White=0.07 (flawless) /Black=0.06 (flawless)} 1/2-1/2

[Event "Julius Baer Generation Cup Prelims 2022"]
[Site "Online"]
[Date "2022.09.14"]
[Round "14.3"]
[White "Ivanchuk, Vasyl"]
[Black "Niemann, Hans Moke"]
[Result "0-1"]
[ECO "C65"]
[WhiteElo "2678"]
[BlackElo "2688"]
[Annotator "TA"]
[PlyCount "68"]
[EventDate "2022.09.12"]
[EventType "tourn"]
[EventCountry "NET"]
[SourceTitle "playchess.com"]
[Source "ChessBase"]
[SourceQuality "1"]
[TimeControl "900+10"]

{[%evp 9,68,11,18,22,19,18,19,20,27,15,25,7,8,-7,0,-13,4,0,0,-9,-2,-27,-20,-49,-21,-19,-17,-21,-29,-28,-18,-54,-61,-79,-85,-108,-106,-116,-139,-129,-129,-147,-119,-154,-147,-153,-147,-221,-219,-389,-400,-458,-454,-457,-451,-449,-438,-410,-421,-408,-420]} 1. e4 {[%emt 0:00:00]} e5 {[%emt 0:00:00]} 2. Nf3 {[%emt 0:00:03]} Nc6 {[%emt 0:00:02]} 3. Bb5 {[%emt 0:00:06]} Nf6 {[%emt 0:00:01]} 4. d3 {[%emt 0:00:08]} Bc5 {[%emt 0:00:02]} 5. c3 {[%emt 0:00:05]} O-O {[%emt 0:00:11]} 6. Nbd2 {[%emt 0:00:59] C65: Ruy Lopez: Berlin Defence (3...Nf6), unusual lines and 4 0-0 Bc5.} Re8 {[%emt 0:00:23]} 7. O-O {[%emt 0:00:09]} a6 {[%emt 0:00:07]} (7... Bb6 {keeps more tension.} 8. Nc4 d5 9. exd5 Qxd5 10. a4 Bg4) 8. Bxc6 {[%emt 0:00:25] The position is equal.} dxc6 {[%emt 0:00:15]} 9. Nc4 {[%emt 0:00:07]} Nd7 {[%emt 0:00:04]} 10. Re1 {[%emt 0:01:24]} Bf8 {[%emt 0:00:04]} 11. d4 {[%emt 0:00:27]} exd4 {[%emt 0:00:09]} 12. cxd4 {[%emt 0:00:01]} Nf6 {[%emt 0:00:48] [#]} 13. Bg5 $146 {[%emt 0:00:17]} (13. Nce5 {with more complications.} Nxe4 14. Rxe4 f6 15. Bf4) ({Predecessor:} 13. Nce5 Be6 14. h3 Nd7 15. Nd3 f6 16. Qc2 Bf7 17. Bd2 a5 18. b3 Ba3 19. Rad1 {1-0 (45) Alekseev,E (2683)-Godena,M (2526) Eilat 2012}) 13... h6 {[%emt 0:00:03]} 14. Bxf6 {[%emt 0:00:02]} Qxf6 {[%emt 0:00:03]} 15. h3 {[%emt 0:00:27]} b6 {[%emt 0:00:19]} 16. Qb3 {[%emt 0:00:34]} Be6 {[%emt 0:00:34] [#] ...b5 is the strong threat.} (16... c5 $5 {[%cal Rc5d4]}) 17. Qc3 {[%emt 0:00:01]} c5 {[%emt 0:00:09]} 18. d5 {[%emt 0:00:02]} Qxc3 {[%emt 0:00:03]} 19. bxc3 {[%emt 0:00:01]} Bd7 {[%emt 0:00:10]} 20. a4 {[%emt 0:00:09]} f6 {[%emt 0:00:19]} 21. Ncd2 {[%emt 0:00:32]} b5 {[%emt 0:00:10]} 22. axb5 {[%emt 0:00:16]} axb5 {[%emt 0:00:02]} 23. c4 {[%emt 0:00:01]} b4 {[%emt 0:00:18]} 24. Kf1 {[%emt 0:00:07]} c6 {[%emt 0:00:29]} 25. Nb3 {[%emt 0:00:07]} Rxa1 {[%emt 0:00:13]} 26. Rxa1 {[%emt 0:00:02]} Rxe4 {[%emt 0:00:50]} 27. Ra7 {[%emt 0:00:16]} Be8 {[%emt 0:00:32] [#] Hoping for ...cxd5.} 28. Nfd2 {[%emt 0:00:01]} (28. dxc6 $17 {might work better.} Bxc6 29. Rc7) 28... Re7 $19 {[%emt 0:00:14]} 29. Ra8 {[%emt 0:00:07]} (29. Rxe7 Bxe7 30. d6 Bxd6 31. Ne4) 29... cxd5 {[%emt 0:00:04]} 30. cxd5 {[%emt 0:00:01]} Bb5+ {[%emt 0:00:17]} 31. Kg1 {[%emt 0:00:02]} c4 {[%emt 0:01:37][%cal Bc5c4,Bc4c3][%mdl 32]} 32. Nd4 {[%emt 0:00:06]} Re1+ {[%emt 0:00:29]} 33. Kh2 {[%emt 0:00:03]} c3 {[%emt 0:00:02]} 34. N2b3 {[%emt 0:00:25]} Re8 {[%emt 0:00:04] Weighted Error Value: White=0.22 (precise) /Black=0.04 (flawless)} 0-1

[Event "Julius Baer Generation Cup Prelims 2022"]
[Site "Online"]
[Date "2022.09.14"]
[Round "14.4"]
[White "Duda, Jan-Krzysztof"]
[Black "Navara, David"]
[Result "0-1"]
[ECO "A29"]
[WhiteElo "2731"]
[BlackElo "2681"]
[Annotator "TA"]
[PlyCount "78"]
[EventDate "2022.09.12"]
[EventType "tourn"]
[EventCountry "NET"]
[SourceTitle "playchess.com"]
[Source "ChessBase"]
[SourceQuality "1"]
[TimeControl "900+10"]

{[%evp 21,78,0,-7,0,30,5,14,25,16,4,60,53,53,42,53,60,56,50,55,13,69,8,8,8,6,-21,-3,-122,-93,-157,-165,-210,-202,-354,-341,-331,-339,-355,-357,-595,-583,-668,-547,-635,-632,-640,-627,-1004,-964,-1751,-1811,-1987,-652,-538,0,-2045,-2036,-2559,-2145]} 1. c4 {[%emt 0:00:00]} e5 {[%emt 0:00:00]} 2. g3 {[%emt 0:00:04]} Nf6 {[%emt 0:00:11]} 3. Bg2 {[%emt 0:00:08]} d5 {[%emt 0:00:01]} 4. cxd5 {[%emt 0:00:02]} Nxd5 {[%emt 0:00:00]} 5. Nc3 {[%emt 0:00:03]} Nb6 {[%emt 0:00:06]} 6. d3 {[%emt 0:00:39]} Be7 {[%emt 0:00:11]} 7. Nf3 {[%emt 0:00:14]} Nc6 {[%emt 0:00:02]} 8. O-O {[%emt 0:00:00]} O-O {[%emt 0:00:03]} 9. a3 {[%emt 0:00:00]} Be6 {[%emt 0:00:06]} 10. b4 {[%emt 0:01:00][%cal Bb2b4,Bb4b5][%mdl 32] 10.Be3 is more fashionable.} a5 {[%emt 0:00:51]} 11. b5 {[%emt 0:00:03]} Nd4 {[%emt 0:00:01]} 12. Rb1 {[%emt 0:00:32] A29: English Opening: Four Knights Variation with 4 g3.} Nd5 {[%emt 0:00:58]} 13. Na4 {[%emt 0:02:13]} Nxf3+ {[%emt 0:05:47]} 14. Bxf3 {[%emt 0:00:00] The position is equal.} Qd7 {[%emt 0:00:02]} 15. d4 {[%emt 0:02:46] [#]} Rad8 $146 {[%emt 0:03:05]} (15... exd4 $11 16. Qxd4 b6) ({Predecessor:} 15... exd4 16. Qxd4 Bf6 17. Qd2 Qd6 18. Rd1 Rfd8 19. e4 Ne7 20. Qc2 Bd4 21. Be3 Qxa3 22. Rd3 Qa2 23. Qd1 Nf5 24. exf5 Bxf5 25. Rb2 {1-0 (25) Gierth,K (2335)-Roberts,D ICCF email 2006}) 16. dxe5 $14 {[%emt 0:01:01]} Bh3 {[%emt 0:00:01]} 17. Re1 {[%emt 0:00:23]} Qe6 $1 {[%emt 0:00:01][%cal Od5e3] White must now prevent ...Ne3!} 18. Qc2 {[%emt 0:01:04]} Qxe5 {[%emt 0:00:06]} 19. Bb2 {[%emt 0:00:01]} Qg5 {[%emt 0:00:59]} 20. Red1 {[%emt 0:02:15]} h5 {[%emt 0:01:04]} (20... Rd7 $11) 21. Rd3 {[%emt 0:01:00]} ({White should play} 21. Qc1 $14 Qf5 22. Qc4) 21... Nb6 $11 {[%emt 0:00:52]} 22. Nxb6 {[%emt 0:04:19]} cxb6 {[%emt 0:00:02]} 23. Bd4 {[%emt 0:00:16]} Qg6 {[%emt 0:00:16] Strongly threatening ...Rxd4.} 24. Qc3 {[%emt 0:00:43] [#]} (24. e4 $11 {keeps the balance.}) 24... Bxa3 $1 $17 {[%emt 0:00:28][%mdl 512] ...Bb4 is the strong threat. Black continues to play with concentration.} 25. Rbd1 {[%emt 0:00:04]} (25. Ra1 $142 Bb4 26. Qc7) (25. Rdd1 Bb4) 25... Bb4 $36 {[%emt 0:00:10][%mdl 2048] Black is really pushing.} 26. Qc7 {[%emt 0:00:16]} Bf5 {[%emt 0:00:15]} 27. e4 $2 {[%emt 0:00:17]} (27. Re3) 27... Bxe4 $19 {[%emt 0:00:02]} 28. Bxe4 {[%emt 0:00:00]} Qxe4 {[%emt 0:00:01]} 29. Re3 {[%emt 0:00:24]} Qg4 {[%emt 0:00:53]} ({Not} 29... Rxd4 30. Rxe4 Rxd1+ 31. Kg2 $11) 30. f3 $2 {[%emt 0:00:09]} (30. Red3 Rd7 31. Qc2) 30... Qf5 {[%emt 0:00:37]} ({Don't blunder} 30... Rxd4 $2 31. fxg4 Rxd1+ 32. Kg2 Rd2+ 33. Kf1 hxg4 34. Re4 $19) 31. Qc1 {[%emt 0:00:12] [#]} Rxd4 $1 {[%emt 0:01:01]} 32. Rxd4 {[%emt 0:00:00]} Bc5 {[%emt 0:00:01]} 33. Qd1 {[%emt 0:00:18]} Rc8 {[%emt 0:01:03]} 34. Kg2 {[%emt 0:00:08]} Bxd4 {[%emt 0:00:03]} 35. Qxd4 {[%emt 0:00:00]} Rc2+ {[%emt 0:00:59]} 36. Kg1 {[%emt 0:00:01]} Rc1+ {[%emt 0:00:09]} (36... Qxb5 $142 37. Qd8+ Kh7) 37. Kg2 {[%emt 0:00:02]} Rc2+ {[%emt 0:00:01]} (37... Qxb5 $142 38. g4 Qf1+ 39. Kg3 Rc4 40. Qd8+ Kh7 41. Qd3+ Qxd3 42. Rxd3 a4 43. gxh5 b5) 38. Kg1 $1 {[%emt 0:00:01]} Qxb5 {[%emt 0:00:05] ( -> ...Qb1+)} 39. Qe4 {[%emt 0:00:42]} Rc1+ {[%emt 0:00:07] Weighted Error Value: White=0.90/Black=0.48} 0-1

[Event "Julius Baer Generation Cup Prelims 2022"]
[Site "Online"]
[Date "2022.09.14"]
[Round "14.5"]
[White "Gelfand, Boris"]
[Black "Le, Quang Liem"]
[Result "1/2-1/2"]
[ECO "E11"]
[WhiteElo "2668"]
[BlackElo "2728"]
[Annotator "TA"]
[PlyCount "77"]
[EventDate "2022.09.12"]
[EventType "tourn"]
[EventCountry "NET"]
[SourceTitle "playchess.com"]
[Source "ChessBase"]
[SourceQuality "1"]
[TimeControl "900+10"]

{[%evp 12,77,24,0,32,29,37,34,45,39,45,32,19,21,20,18,22,28,33,33,38,18,33,12,13,0,0,-15,-12,-3,18,15,28,15,15,8,8,8,8,8,8,8,8,3,8,8,8,8,8,8,8,0,0,0,0,0,0,0,0,0,0,0,0,0,0,0,0,0]} 1. d4 {[%emt 0:00:00]} Nf6 {[%emt 0:00:00]} 2. c4 {[%emt 0:00:02]} e6 {[%emt 0:00:01]} 3. Nf3 {[%emt 0:00:00]} d5 {[%emt 0:00:02]} 4. g3 {[%emt 0:00:01]} Bb4+ {[%emt 0:00:01]} 5. Bd2 {[%emt 0:00:01]} a5 {[%emt 0:00:00]} 6. Bg2 {[%emt 0:00:02]} O-O {[%emt 0:00:02]} 7. Qc2 {[%emt 0:00:07]} c5 {[%emt 0:00:02] E11: Bogo-Indian.} 8. cxd5 $1 {[%emt 0:00:14] 8.cxd5 scores better than 8.dxc5.} cxd4 {[%emt 0:00:02]} 9. Nxd4 {[%emt 0:00:03]} Qb6 {[%emt 0:00:01] White is slightly better.} 10. e3 {[%emt 0:00:01]} exd5 {[%emt 0:00:01]} 11. a3 {[%emt 0:00:01]} Bxd2+ {[%emt 0:00:09]} 12. Nxd2 {[%emt 0:00:01]} ({Don't play} 12. Kxd2 Nc6 13. Qb3 Ra6 $17) 12... Nc6 {[%emt 0:00:05]} 13. N2f3 {[%emt 0:00:10]} Bg4 {[%emt 0:00:08]} 14. O-O {[%emt 0:00:18]} Rac8 {[%emt 0:00:03] [#] aiming for ...Nxd4.} 15. Qd3 {[%emt 0:00:46]} Ne4 {[%emt 0:02:32]} 16. Rab1 {[%emt 0:02:44] [#]} Rfe8 $146 {[%emt 0:00:41]} ({Predecessor:} 16... Bh5 17. Bh3 Nxd4 18. Nxd4 Rc5 19. b4 Rc3 20. Qb5 Qxb5 21. Nxb5 Rc4 22. Rb2 axb4 23. axb4 Ra8 24. Rfb1 Kf8 25. Bf1 Rcc8 26. Bh3 Rc4 27. Bf1 Rcc8 28. Bh3 {½-½ (28) Wojtaszek,R (2717)-Huschenbeth,N (2605) Warsaw 2020}) 17. Rfc1 {[%emt 0:01:24]} h6 {[%emt 0:02:05]} 18. Nxc6 {[%emt 0:04:21]} bxc6 {[%emt 0:00:04]} 19. b4 {[%emt 0:00:01]} axb4 {[%emt 0:00:24]} (19... c5 {is more complex.} 20. h3 Bxf3 21. Bxf3 cxb4 22. Rxc8 Rxc8 23. axb4 axb4 24. Qxd5 Nc3) 20. axb4 {[%emt 0:00:02]} Bxf3 {[%emt 0:05:01]} (20... c5 $5 {[%cal Rb6f6]} 21. Nd2 (21. Qxd5 $2 Qf6 $19) 21... cxb4 22. Rxc8 Bxc8 23. Nxe4 dxe4 $11) 21. Bxf3 {[%emt 0:00:04]} Rb8 {[%emt 0:00:08]} 22. Qc2 {[%emt 0:02:52]} Re6 {[%emt 0:00:36] The position is equal.} 23. Bxe4 {[%emt 0:00:38]} (23. h4 {feels hotter.} Qb7 24. Kg2 Qe7 25. Bxe4 dxe4 26. Qb2) 23... Rxe4 {[%emt 0:00:31]} 24. Qxc6 {[%emt 0:00:03]} Qxc6 {[%emt 0:00:00]} 25. Rxc6 {[%emt 0:00:02] Threatening b5.} Rexb4 {[%emt 0:00:01]} 26. Rxb4 {[%emt 0:00:01]} Rxb4 $11 {[%emt 0:00:00][%mdl 4096] Endgame KR-KR} 27. Rc8+ {[%emt 0:00:01]} Kh7 {[%emt 0:00:02]} 28. Rd8 {[%emt 0:00:01]} Rb5 {[%emt 0:00:09]} 29. g4 {[%emt 0:00:05]} Kg6 {[%emt 0:00:05]} 30. Kg2 {[%emt 0:00:05]} h5 {[%emt 0:00:07]} 31. h3 {[%emt 0:00:03]} hxg4 {[%emt 0:00:02]} 32. hxg4 {[%emt 0:00:00]} Kf6 {[%emt 0:00:04]} 33. Kg3 {[%emt 0:00:03]} g5 {[%emt 0:00:07]} 34. Ra8 {[%emt 0:00:08]} Rb6 {[%emt 0:00:09]} 35. Rd8 {[%emt 0:00:05]} Ke6 {[%emt 0:00:06]} 36. Re8+ {[%emt 0:00:03]} Kf6 {[%emt 0:00:02]} 37. Rd8 {[%emt 0:00:01]} Ke6 {[%emt 0:00:01]} 38. Re8+ {[%emt 0:00:01]} Kf6 {[%emt 0:00:01]} 39. Rd8 {[%emt 0:00:01] Weighted Error Value: White=0.05 (flawless) /Black=0.04 (flawless)} 1/2-1/2

[Event "Julius Baer Generation Cup Prelims 2022"]
[Site "Online"]
[Date "2022.09.14"]
[Round "14.6"]
[White "Yoo, Christopher Woojin"]
[Black "Adhiban, B.."]
[Result "1-0"]
[ECO "A04"]
[WhiteElo "2563"]
[BlackElo "2603"]
[Annotator "TA"]
[PlyCount "115"]
[EventDate "2022.09.12"]
[EventType "tourn"]
[EventCountry "NET"]
[SourceTitle "playchess.com"]
[Source "ChessBase"]
[SourceQuality "1"]
[TimeControl "900+10"]

{[%evp 9,115,0,-13,-9,3,-41,-31,-54,-49,-60,-56,-70,-85,-113,-120,-129,-112,-113,-91,-90,-92,-94,-91,-83,-55,-62,-56,-116,11,11,11,6,11,4,34,37,37,38,28,10,22,0,0,0,0,0,0,8,5,0,0,0,0,0,0,0,0,-9,-15,-10,0,0,0,0,0,0,10,0,22,22,12,8,18,8,37,0,71,16,19,19,19,19,33,36,27,19,85,81,95,134,134,134,132,8,1375,1352,1318,1129,1651,1571,1320,1205,1990,1448,29979,29977,29962,5699]} 1. Nf3 {[%emt 0:00:00]} f5 {[%emt 0:00:00]} 2. d3 {[%emt 0:00:02]} d6 {[%emt 0:00:04]} 3. e4 {[%emt 0:00:02]} e5 {[%emt 0:00:01][%cal Be7e5,Be5e4][%mdl 32]} 4. Nc3 {[%emt 0:02:48]} Nc6 {[%emt 0:00:04]} 5. d4 {[%emt 0:00:29]} fxe4 {[%emt 0:00:11]} 6. Nxe4 {[%emt 0:01:35] A04: Unusual lines after 1 Nf3 and King's Indian Attack.} d5 {[%emt 0:00:02]} 7. Nc3 {[%emt 0:00:51]} e4 $1 {[%emt 0:00:45]} (7... exd4 8. Nxd4 Nf6 9. Bb5 $11) 8. Ng1 {[%emt 0:00:40] Black is slightly better.} Nf6 {[%emt 0:00:44] [#] Against Qh5+} 9. Bg5 $146 {[%emt 0:00:03]} ({Predecessor:} 9. Bb5 Be7 10. h3 O-O 11. Nge2 a6 12. Ba4 b5 13. Bb3 Na5 14. O-O c6 15. Ng3 Kh8 16. Nce2 {0-1 (36) Onal,O (1461)-Minas,I (2019) Skopje 2013}) 9... Bb4 {[%emt 0:00:12]} 10. Nge2 {[%emt 0:01:00]} h6 {[%emt 0:00:09]} 11. Bh4 {[%emt 0:00:09] [#]} O-O $1 {[%emt 0:01:01]} 12. a3 {[%emt 0:00:05]} Be7 {[%emt 0:00:37]} 13. h3 {[%emt 0:01:04] Inhibits Ng4.} Be6 {[%emt 0:03:51]} 14. Qd2 {[%emt 0:00:44]} Nh5 {[%emt 0:01:14]} 15. Bxe7 {[%emt 0:00:17]} Qxe7 {[%emt 0:00:00]} 16. g4 {[%emt 0:00:26] [#]} Qf6 $1 {[%emt 0:01:18]} 17. O-O-O {[%emt 0:00:55]} Nf4 {[%emt 0:00:03]} 18. Ng3 {[%emt 0:00:09]} (18. Nxe4 $1 $15 dxe4 19. Nxf4 Qxf4 20. Qxf4 Rxf4 21. d5) 18... Ng6 {[%emt 0:00:27] [#]} ({Black should play} 18... Ne7 $17 {And now ...c6 would win.} 19. Kb1 Rad8) 19. Ngxe4 $1 $11 {[%emt 0:01:56]} dxe4 {[%emt 0:01:20]} 20. d5 $1 {[%emt 0:00:02]} Rad8 {[%emt 0:00:36] Threatens to win with ...Nf4.} (20... Qxf2 21. Qxf2 Rxf2 22. dxe6 $16 (22. dxc6 bxc6 23. Nxe4 Rf7 $14)) 21. Qe3 {[%emt 0:00:17]} Bd7 {[%emt 0:04:25]} ({But not} 21... Qxf2 22. Qxf2 Rxf2 23. dxc6 Rxd1+ 24. Nxd1 $16) (21... Bxd5 $5 22. Rxd5 Qxf2 23. Qxf2 Rxf2 $14) 22. dxc6 {[%emt 0:00:19]} Bxc6 {[%emt 0:00:02]} 23. Rxd8 {[%emt 0:00:05]} Rxd8 {[%emt 0:01:04]} 24. Bg2 {[%emt 0:00:16]} Rf8 {[%emt 0:00:11]} 25. Nxe4 {[%emt 0:01:05][%cal Bc3e4,Be4g3,Bg3f5,Bf5d4,Bd4f3,Bf3e5,Be5g6][%mdl 32]} Qf4 {[%emt 0:00:16]} 26. Re1 {[%emt 0:00:23]} Nh4 {[%emt 0:00:06]} 27. Bh1 {[%emt 0:00:13]} Nf3 $1 {[%emt 0:00:19]} 28. Bxf3 {[%emt 0:00:37]} Qxf3 {[%emt 0:00:00]} 29. Ng3 {[%emt 0:01:14]} Qxf2 {[%emt 0:00:06]} 30. Nf5 {[%emt 0:00:06]} Qxe3+ {[%emt 0:00:04]} 31. Rxe3 {[%emt 0:00:00][%mdl 4096] Endgame KRB-KRN} Bd7 {[%emt 0:00:13]} 32. Nd4 {[%emt 0:00:03]} Rf4 {[%emt 0:00:07]} 33. Nf3 {[%emt 0:00:22]} Bc6 {[%emt 0:00:19]} 34. Ne5 {[%emt 0:00:02]} Re4 {[%emt 0:00:01]} 35. Kd2 {[%emt 0:00:08]} Rxe3 {[%emt 0:00:05]} 36. Kxe3 {[%emt 0:00:02] KB-KN} Bg2 {[%emt 0:00:01]} 37. h4 {[%emt 0:00:03]} Kf8 {[%emt 0:00:01]} 38. Ng6+ {[%emt 0:00:26]} Ke8 {[%emt 0:00:20]} (38... Kf7 $5 {[%cal Rf7g6]} 39. Nf4 Bh1 $11) 39. Nf4 {[%emt 0:00:02]} Bc6 {[%emt 0:00:05]} 40. Ne6 {[%emt 0:01:05][%csl LRc7,LRg7]} g6 {[%emt 0:00:26]} 41. Nf4 {[%emt 0:00:49]} ({Don't go for} 41. Nxc7+ $2 Kd7 42. Na8 b5 $19) 41... Bd7 {[%emt 0:00:38]} 42. Nd5 {[%emt 0:01:01]} Bc6 {[%emt 0:00:15] [#]} (42... Kf7 $11) 43. Nb4 {[%emt 0:00:12]} ({Not} 43. Nxc7+ $2 Kd7 44. Na8 b5 $19) ({Better is} 43. Kd4 $1 $16) 43... Bd7 {[%emt 0:00:10]} 44. Kf4 {[%emt 0:00:01]} Ke7 $1 {[%emt 0:00:01]} 45. g5 {[%emt 0:00:14]} hxg5+ {[%emt 0:00:02]} 46. Kxg5 {[%emt 0:00:00]} Kf7 {[%emt 0:00:07]} 47. Nd5 {[%emt 0:00:20]} c6 {[%emt 0:00:11]} (47... Bf5 $1 $11) 48. Nf4 $16 {[%emt 0:00:04]} Bf5 {[%emt 0:00:01]} 49. h5 {[%emt 0:00:02][%cal Bh4h5,Bh5g6,Bg6g7][%mdl 32]} Bxc2 {[%emt 0:00:01] ...gxh5 is the strong threat.} 50. hxg6+ {[%emt 0:00:01]} Ke7 {[%emt 0:00:08]} 51. Ng2 {[%emt 0:00:31]} (51. Kh6 $16) 51... a5 $2 {[%emt 0:00:13][%mdl 8192] Black cannot hold the game after this.} (51... Bxg6 $11 52. Kxg6 Ke6) 52. Ne3 $18 {[%emt 0:00:07]} Bb1 {[%emt 0:00:32]} 53. Nc4 {[%emt 0:00:09]} a4 {[%emt 0:00:04]} 54. Nb6 {[%emt 0:00:08]} Bc2 {[%emt 0:00:04]} 55. g7 {[%emt 0:00:04]} Kf7 {[%emt 0:00:16]} 56. Kh6 {[%emt 0:00:02] aiming for Nd7.} Kg8 {[%emt 0:00:05]} 57. Nd7 {[%emt 0:00:05]} Kf7 {[%emt 0:00:14] [#]} 58. Nf6 $1 {[%emt 0:00:03][%mdl 512] Weighted Error Value: White=0.13 (very precise) /Black=0.26 (precise)} 1-0